bitfinex-derivatives/quotes_BTCF0:USTF0_20210707
["timestamp","ask_amount","ask_price","bid_price","bid_amount"]
[1625649610710,4.02966436,34689.0,34688.0,1.67487427]
[1625649611009,4.02966436,34689.0,34688.0,2.69343868]
[1625649611129,4.02966436,34689.0,34688.0,1.67487427]
[1625649612089,4.02966436,34689.0,34688.0,2.35394044]
[1625649612090,4.69952477,34689.0,34688.0,2.35394044]
[1625649613231,4.69952477,34689.0,34688.0,1.67487427]
[1625649614796,4.69952477,34689.0,34688.0,1.16587698]
[1625649615217,4.69952477,34689.0,34688.0,0.86982698]
[1625649617259,4.69952477,34689.0,34688.0,1.37914048]
[1625649618644,4.69952477,34689.0,34688.0,2.05825312]
[1625649620511,4.69952477,34689.0,34688.0,1.37914048]
[1625649620809,4.69952477,34689.0,34688.0,2.05829112]
[1625649621290,4.69952477,34689.0,34688.0,1.37914048]
[1625649621709,4.69952477,34689.0,34688.0,2.05833067]
[1625649623817,4.69952477,34689.0,34688.0,3.07716119]
[1625649625443,3.36112156,34689.0,34688.0,3.07716119]
[1625649625983,4.70021329,34689.0,34688.0,3.07716119]
[1625649626824,3.36112156,34689.0,34688.0,4.26569454]
[1625649630909,2.18952011,34689.0,34688.0,4.26569454]
[1625649631874,3.36076775,34689.0,34688.0,4.26569454]
[1625649633675,3.3475723,34689.0,34688.0,4.26569454]
[1625649633977,2.17632466,34689.0,34688.0,4.26569454]
[1625649635297,2.18962309,34689.0,34688.0,5.6241277]
[1625649635780,2.18962309,34689.0,34688.0,4.26569454]
[1625649636082,2.17632466,34689.0,34688.0,4.26569454]
[1625649636200,2.17632466,34689.0,34688.0,5.62408195]
[1625649637169,2.00462466,34689.0,34688.0,5.62408195]
[1625649637288,1.94792466,34689.0,34688.0,5.62408195]
[1625649637528,0.001,34692.0,34688.0,5.62408195]
[1625649637529,1.1745669,34692.0,34688.0,7.15277676]
[1625649637827,1.1654669,34692.0,34688.0,7.15277676]
[1625649637947,1.1226669,34692.0,34689.0,0.00486049]
[1625649638067,1.0412669,34692.0,34689.0,0.29353049]
[1625649638190,0.8608669,34692.0,34689.0,0.29353049]
[1625649638311,0.001,34692.0,34691.0,8.28079497]
[1625649638429,0.62702499,34694.0,34691.0,9.4690933]
[1625649638550,1.17511807,34697.0,34693.0,2.54630604]
[1625649638789,1.17511807,34697.0,34696.0,1.18827692]
[1625649638909,1.17511807,34697.0,34696.0,1.46601692]
[1625649639150,1.17511807,34697.0,34696.0,1.47087688]
[1625649639329,0.002,34697.0,34696.0,2.8292324]
[1625649639572,0.002,34697.0,34696.0,3.55095872]
[1625649639936,0.002,34697.0,34696.0,3.63605872]
[1625649641438,1.17539458,34698.0,34696.0,3.63605872]
[1625649641616,0.002,34698.0,34696.0,3.63605872]
[1625649641797,0.002,34698.0,34697.0,1.18730643]
[1625649642037,1.17195916,34699.0,34697.0,1.18730643]
[1625649642159,1.17195916,34699.0,34697.0,1.19216787]
[1625649642340,1.17172819,34702.0,34698.0,2.54401841]
[1625649642459,1.17172819,34702.0,34698.0,2.54887936]
[1625649642700,0.003,34703.0,34700.0,1.35676318]
[1625649643545,0.003,34703.0,34701.0,0.0048608]
[1625649643665,0.003,34703.0,34702.0,0.48115088]
[1625649644324,1.33867499,34707.0,34702.0,0.48115088]
[1625649644445,0.003,34703.0,34702.0,0.48115088]
[1625649647392,0.001,34707.0,34702.0,0.48115088]
[1625649647631,0.001,34707.0,34706.0,0.48115088]
[1625649647873,0.001,34707.0,34706.0,0.78692088]
[1625649652201,0.16830929,34707.0,34706.0,0.95597123]
[1625649652683,0.001,34707.0,34706.0,0.95597123]
[1625649653526,0.001,34707.0,34706.0,0.65020123]
[1625649653764,0.001,34707.0,34706.0,0.48115088]
[1625649656289,0.001,34711.0,34706.0,0.48115088]
[1625649657790,0.001,34711.0,34710.0,0.37904606]
[1625649659352,1.33592332,34711.0,34710.0,0.37904606]
[1625649659896,0.001,34711.0,34710.0,0.37904606]
[1625649660075,0.001,34711.0,34710.0,0.69734606]
[1625649661156,1.33690789,34711.0,34710.0,0.69734606]
[1625649661275,1.33690789,34711.0,34710.0,0.37904606]
[1625649661878,0.001,34711.0,34710.0,0.37904606]
[1625649662418,1.17086891,34711.0,34710.0,0.37904606]
[1625649665241,0.001,34711.0,34710.0,0.37904606]
[1625649665601,0.01425386,34711.0,34710.0,0.37904606]
[1625649667474,1.02027946,34711.0,34710.0,0.37904606]
[1625649667954,0.01425386,34711.0,34710.0,0.37904606]
[1625649668373,0.01325386,34711.0,34710.0,0.37904606]
[1625649668492,1.02098874,34711.0,34710.0,0.37904606]
[1625649668733,1.02098874,34711.0,34710.0,0.45064606]
[1625649668854,1.02098874,34711.0,34710.0,0.52224606]
[1625649670777,2.19664789,34711.0,34710.0,0.52224606]
[1625649671318,3.53995029,34711.0,34710.0,0.52224606]
[1625649671499,2.19664789,34711.0,34710.0,0.52224606]
[1625649672278,2.19664789,34711.0,34710.0,0.52711863]
[1625649672401,1.02098874,34711.0,34710.0,0.52711863]
[1625649672706,2.19707142,34711.0,34710.0,0.52711863]
[1625649673361,2.19707142,34711.0,34710.0,0.52224606]
[1625649673544,2.19707142,34711.0,34710.0,0.52711871]
[1625649674742,1.02098874,34711.0,34710.0,0.52711871]
[1625649676666,2.19733554,34711.0,34710.0,0.52711871]
[1625649678350,2.54110554,34711.0,34710.0,0.52711871]
[1625649678470,2.54110554,34711.0,34710.0,0.52224606]
[1625649678592,3.88625299,34711.0,34710.0,0.52224606]
[1625649678713,3.88625299,34711.0,34710.0,0.52710633]
[1625649678954,3.92028817,34711.0,34710.0,0.52224606]
[1625649679556,5.43281025,34711.0,34710.0,0.52224606]
[1625649679973,5.67338569,34711.0,34710.0,0.52224606]
[1625649682136,5.63935051,34711.0,34710.0,0.52224606]
[1625649682259,4.12682843,34711.0,34710.0,0.52224606]
[1625649682376,4.12682843,34711.0,34710.0,4.606e-05]
[1625649682498,5.64100137,34711.0,34703.0,0.002]
[1625649682678,3.53010808,34704.0,34703.0,0.002]
[1625649682801,3.77195808,34704.0,34703.0,0.002]
[1625649682919,5.29703299,34704.0,34703.0,0.002]
[1625649683522,5.33107771,34704.0,34703.0,0.002]
[1625649684062,6.01875931,34704.0,34703.0,0.002]
[1625649686406,6.01875931,34704.0,34701.0,0.001]
[1625649686528,5.04111052,34702.0,34701.0,0.001]
[1625649686950,5.0543925,34702.0,34701.0,0.001]
[1625649689657,5.04111052,34702.0,34701.0,0.001]
[1625649689901,9.56991052,34702.0,34701.0,0.001]
[1625649690139,8.05761097,34702.0,34701.0,0.24157544]
[1625649690621,9.57213837,34702.0,34701.0,0.24157544]
[1625649691520,9.58541958,34702.0,34701.0,0.24157544]
[1625649692541,9.57213837,34702.0,34701.0,0.24157544]
[1625649692661,8.05761097,34702.0,34701.0,0.24157544]
[1625649695793,8.05761097,34702.0,34701.0,0.57794544]
[1625649696273,8.05761097,34702.0,34701.0,1.08616881]
[1625649696515,6.71332603,34702.0,34701.0,0.91676102]
[1625649696753,8.05982741,34702.0,34701.0,0.83205883]
[1625649696995,8.05982741,34702.0,34701.0,0.57794544]
[1625649698618,8.73168287,34702.0,34701.0,0.57794544]
[1625649699279,8.73168287,34702.0,34701.0,0.57694544]
[1625649700482,8.73168287,34702.0,34701.0,0.66164878]
[1625649700723,8.73168287,34702.0,34701.0,0.83105478]
[1625649700844,8.73168287,34702.0,34701.0,1.16986638]
[1625649701808,8.73168287,34702.0,34701.0,0.57694544]
[1625649701927,8.73168287,34702.0,34701.0,0.24057544]
[1625649702889,8.74496718,34702.0,34701.0,0.24057544]
[1625649705051,8.73168287,34702.0,34701.0,0.24057544]
[1625649705355,8.74496671,34702.0,34701.0,0.24057544]
[1625649705474,8.74496671,34702.0,34701.0,0.49466]
[1625649705595,7.39846533,34702.0,34701.0,0.83341569]
[1625649705836,7.38518149,34702.0,34701.0,0.83341569]
[1625649706076,7.39846501,34702.0,34701.0,0.83341569]
[1625649706917,8.7426115,34702.0,34701.0,0.24057544]
[1625649707157,8.7426115,34702.0,34701.0,0.32527079]
[1625649707701,8.7426115,34702.0,34701.0,0.49464965]
[1625649707882,7.39846501,34702.0,34701.0,0.57935171]
[1625649708120,7.39846501,34702.0,34701.0,0.7487397]
[1625649708480,7.39846501,34702.0,34701.0,0.57935171]
[1625649708599,7.39846501,34702.0,34701.0,0.74873863]
[1625649709026,7.39846501,34702.0,34701.0,0.57935171]
[1625649709146,2.86966501,34702.0,34701.0,0.57935171]
[1625649709266,1.69339469,34702.0,34701.0,1.26174043]
[1625649709382,1.69339469,34702.0,34701.0,1.93925345]
[1625649709503,0.67185546,34702.0,34701.0,1.93925345]
[1625649709623,0.67185546,34702.0,34701.0,5.64745345]
[1625649709744,0.67185546,34702.0,34701.0,6.83300523]
[1625649710224,0.33676729,34702.0,34701.0,6.83300523]
[1625649710349,0.33676729,34702.0,34701.0,7.16028067]
[1625649710946,0.50524412,34702.0,34701.0,7.16028067]
[1625649711189,0.25282073,34702.0,34701.0,8.51520693]
[1625649711489,0.58997544,34704.0,34701.0,8.51520693]
[1625649711669,0.25296692,34704.0,34703.0,4.23410438]
[1625649711849,0.25305634,34705.0,34703.0,4.23410438]
[1625649711969,0.25305634,34705.0,34703.0,4.23896558]
[1625649712090,0.08440827,34705.0,34704.0,4.23361675]
[1625649712210,0.08440827,34705.0,34704.0,4.50974791]
[1625649712330,0.08440827,34705.0,34704.0,4.75032335]
[1625649713957,0.591198,34706.0,34704.0,4.75032335]
[1625649714257,0.591198,34706.0,34705.0,4.23320345]
[1625649714439,0.591198,34706.0,34705.0,4.47377889]
[1625649714918,0.591198,34706.0,34705.0,3.11915379]
[1625649716302,0.5067706,34706.0,34705.0,3.11915379]
[1625649716602,0.59115315,34706.0,34705.0,3.11915379]
[1625649716843,0.2540255,34706.0,34705.0,3.11915379]
[1625649717444,0.59006729,34706.0,34705.0,3.11915379]
[1625649717986,0.2530255,34706.0,34705.0,3.11915379]
[1625649718226,0.08438255,34706.0,34705.0,4.47347762]
[1625649718525,0.59012414,34707.0,34705.0,4.47347762]
[1625649718824,0.25304268,34707.0,34706.0,2.87792954]
[1625649718944,0.08440776,34707.0,34706.0,2.87792954]
[1625649719185,0.08440776,34707.0,34706.0,4.23210822]
[1625649719423,0.08440776,34707.0,34706.0,2.87792954]
[1625649719665,0.08440776,34707.0,34706.0,4.23202465]
[1625649719846,0.59031934,34708.0,34706.0,4.23202465]
[1625649720088,0.50589283,34708.0,34707.0,2.8774566]
[1625649720567,0.50589283,34708.0,34707.0,3.11803204]
[1625649720811,0.59032722,34708.0,34707.0,3.11803204]
[1625649720990,0.59032722,34708.0,34707.0,3.20453204]
[1625649721230,0.08443439,34708.0,34707.0,3.20453204]
[1625649721712,0.59140724,34709.0,34707.0,3.20453204]
[1625649721894,0.08442608,34708.0,34707.0,0.32707544]
[1625649722132,0.59138517,34709.0,34707.0,3.20408996]
[1625649722433,0.50697937,34709.0,34708.0,2.87702977]
[1625649723214,0.16971597,34709.0,34708.0,2.87702977]
[1625649723694,0.001,34709.0,34708.0,2.87702977]
[1625649724723,0.001,34709.0,34708.0,3.11760521]
[1625649725562,0.001,34709.0,34708.0,3.12246887]
[1625649725683,0.001,34709.0,34708.0,4.47579358]
[1625649726344,0.5047004,34712.0,34708.0,4.47579358]
[1625649726584,0.5047004,34712.0,34711.0,1.6916131]
[1625649726706,0.5047004,34712.0,34711.0,2.19940854]
[1625649727307,0.16827324,34712.0,34711.0,2.19940854]
[1625649727546,0.16932662,34713.0,34711.0,3.38318561]
[1625649727786,0.16932662,34713.0,34712.0,1.691098]
[1625649728086,0.001,34713.0,34712.0,2.87486471]
[1625649728505,0.001,34713.0,34712.0,3.38218985]
[1625649728686,0.12588761,34714.0,34712.0,3.62276529]
[1625649728809,0.46257399,34714.0,34712.0,3.62276529]
[1625649729048,0.46257399,34714.0,34713.0,2.19827209]
[1625649729468,0.12588761,34714.0,34713.0,2.19827209]
[1625649730008,0.10578761,34714.0,34713.0,2.19827209]
[1625649730188,0.33685774,34715.0,34713.0,2.19827209]
[1625649730368,0.33685774,34715.0,34714.0,1.18337287]
[1625649730610,0.25945774,34715.0,34714.0,1.18337287]
[1625649730730,0.25945774,34715.0,34714.0,1.42394831]
[1625649730851,0.50519344,34716.0,34714.0,2.4380427]
[1625649731033,0.50519344,34716.0,34715.0,0.50700147]
[1625649731696,1.17873252,34717.0,34715.0,1.18297546]
[1625649731933,0.50526177,34717.0,34716.0,0.50698143]
[1625649732234,1.17924129,34717.0,34716.0,0.50698143]
[1625649732414,1.17924129,34717.0,34715.0,0.59318986]
[1625649732717,0.50538481,34716.0,34715.0,0.59318986]
[1625649733316,0.505303,34717.0,34715.0,1.26898324]
[1625649733560,0.505303,34717.0,34716.0,0.50683978]
[1625649734042,0.505303,34717.0,34715.0,1.34043351]
[1625649734702,1.18117639,34718.0,34716.0,0.24057544]
[1625649734944,0.50749519,34718.0,34716.0,0.24057544]
[1625649735188,0.50749519,34718.0,34716.0,0.7472616]
[1625649735425,0.50549519,34718.0,34716.0,0.7472616]
[1625649736566,0.50562353,34719.0,34717.0,4.7794]
[1625649736748,0.50562353,34719.0,34718.0,0.24057544]
[1625649736866,0.50562353,34719.0,34718.0,0.46696544]
[1625649737469,0.50550244,34720.0,34718.0,0.46696544]
[1625649737708,7.42326282,34721.0,34718.0,0.46696544]
[1625649737952,0.50562514,34720.0,34718.0,0.46696544]
[1625649738191,7.4232738,34721.0,34718.0,0.46696544]
[1625649738550,6.7493267,34721.0,34718.0,0.46696544]
[1625649738671,6.2437,34721.0,34719.0,0.59254905]
[1625649738789,6.2437,34721.0,34720.0,0.24057544]
[1625649739029,6.331,34721.0,34720.0,0.24057544]
[1625649739269,0.0883,34721.0,34720.0,0.24057544]
[1625649739391,0.36205984,34723.0,34720.0,0.24057544]
[1625649739571,1.01127392,34725.0,34722.0,1.18116145]
[1625649739689,0.29319937,34727.0,34722.0,1.18116145]
[1625649739814,0.67508809,34730.0,34725.0,0.67455843]
[1625649740052,0.003,34731.0,34727.0,0.67410136]
[1625649740171,0.003,34731.0,34730.0,3.9945]
[1625649740900,0.003,34731.0,34730.0,4.71622632]
[1625649747260,0.001,34735.0,34730.0,4.71622632]
[1625649748101,0.001,34735.0,34730.0,0.72172632]
[1625649748403,0.001,34735.0,34731.0,0.0867]
[1625649748947,0.001,34735.0,34734.0,0.24057544]
[1625649749977,0.67431299,34735.0,34734.0,0.24057544]
[1625649750089,0.67431299,34735.0,34730.0,0.72172632]
[1625649750207,0.67431299,34735.0,34723.0,1.09616179]
[1625649750208,4.44149819,34735.0,34723.0,0.0887]
[1625649750450,0.67333974,34727.0,34723.0,0.002]
[1625649750569,1.00020974,34727.0,34723.0,0.002]
[1625649750694,0.67310477,34725.0,34723.0,0.002]
[1625649750929,0.96230176,34724.0,34723.0,0.002]
[1625649751411,1.63534571,34724.0,34723.0,0.002]
[1625649752554,0.96230176,34724.0,34723.0,0.002]
[1625649756342,0.96230176,34724.0,34721.0,0.001]
[1625649756941,0.96230176,34724.0,34723.0,0.24057544]
[1625649757064,0.96230176,34724.0,34723.0,0.61325544]
[1625649757546,0.96230176,34724.0,34723.0,1.28603735]
[1625649758870,0.96230176,34724.0,34723.0,0.61325544]
[1625649759950,0.96230176,34724.0,34723.0,0.52585544]
[1625649760311,0.96230176,34724.0,34723.0,1.19880434]
[1625649760672,0.96230176,34724.0,34723.0,1.20364947]
[1625649760973,0.96230176,34724.0,34723.0,2.29861985]
[1625649761514,0.96230176,34724.0,34723.0,2.29377472]
[1625649761693,0.96230176,34724.0,34723.0,1.28490434]
[1625649761815,0.96230176,34724.0,34723.0,1.19880434]
[1625649762958,0.96230176,34724.0,34723.0,1.28610434]
[1625649763136,0.96230176,34724.0,34723.0,2.30055554]
[1625649765598,0.96230176,34724.0,34723.0,1.29094965]
[1625649765959,0.96230176,34724.0,34723.0,1.28610434]
[1625649766079,0.96230176,34724.0,34723.0,1.00082434]
[1625649766380,0.96230176,34724.0,34723.0,0.91352434]
[1625649766501,0.96230176,34724.0,34723.0,0.91835388]
[1625649767704,0.96230176,34724.0,34723.0,1.00515388]
[1625649768605,0.96230176,34724.0,34723.0,0.91835388]
[1625649769872,0.96230176,34724.0,34723.0,1.92981188]
[1625649770592,0.96230176,34724.0,34723.0,2.23003188]
[1625649772096,0.96230176,34724.0,34723.0,1.92981188]
[1625649772215,0.96230176,34724.0,34723.0,0.24540498]
[1625649772339,0.96230176,34724.0,34723.0,1.93230063]
[1625649775465,0.96230176,34724.0,34723.0,2.01810063]
[1625649775583,0.96230176,34724.0,34723.0,1.93230063]
[1625649776125,0.96230176,34724.0,34723.0,3.11342782]
[1625649776246,0.95100176,34724.0,34723.0,3.11342782]
[1625649776368,0.94430176,34724.0,34723.0,3.11342782]
[1625649776666,0.94430176,34724.0,34723.0,3.20072782]
[1625649777027,0.94430176,34724.0,34723.0,4.55029077]
[1625649777570,0.94430176,34724.0,34723.0,3.20072782]
[1625649778831,0.94430176,34724.0,34723.0,0.33270498]
[1625649779015,0.94430176,34724.0,34723.0,3.20200034]
[1625649779796,0.94430176,34724.0,34723.0,4.55181972]
[1625649782141,0.94430176,34724.0,34723.0,3.20200034]
[1625649784488,0.95768977,34724.0,34723.0,3.20200034]
[1625649785572,1.63485585,34724.0,34723.0,2.9614249]
[1625649787013,1.63485585,34724.0,34723.0,2.8741249]
[1625649787677,3.83630641,34724.0,34723.0,1.69265034]
[1625649788638,3.83630641,34724.0,34723.0,0.67995786]
[1625649788756,3.83630641,34724.0,34723.0,0.75145786]
[1625649788879,3.83630641,34724.0,34723.0,0.82295786]
[1625649789418,2.65092298,34724.0,34723.0,3.02186832]
[1625649789658,2.65092298,34724.0,34723.0,1.83783961]
[1625649789900,5.19193471,34724.0,34723.0,0.82295786]
[1625649791099,5.19193471,34724.0,34723.0,0.81812832]
[1625649792666,5.19193471,34724.0,34723.0,1.83358722]
[1625649792785,5.19193471,34724.0,34723.0,1.83839063]
[1625649792908,3.83673975,34724.0,34723.0,1.83839063]
[1625649794889,3.83673975,34724.0,34723.0,3.02339575]
[1625649796330,2.65092298,34724.0,34723.0,3.02339575]
[1625649796572,2.65092298,34724.0,34723.0,4.37672141]
[1625649796573,2.63753497,34724.0,34723.0,4.37672141]
[1625649796811,2.63753497,34724.0,34723.0,8.07762141]
[1625649796932,2.63753497,34724.0,34723.0,8.16312141]
[1625649797054,0.94430176,34724.0,34723.0,8.16312141]
[1625649797293,0.94430176,34724.0,34723.0,9.59911406]
[1625649797478,0.94430176,34724.0,34723.0,9.8396895]
[1625649800896,4.99250176,34724.0,34723.0,9.8396895]
[1625649801256,4.99250176,34724.0,34723.0,8.31819685]
[1625649801916,5.67084824,34724.0,34723.0,8.31819685]
[1625649802397,4.99250176,34724.0,34723.0,9.83917425]
[1625649808594,0.94430176,34724.0,34723.0,9.83917425]
[1625649811719,0.94430176,34724.0,34723.0,6.13827425]
[1625649812137,4.95920176,34724.0,34723.0,6.13827425]
[1625649812618,0.94430176,34724.0,34723.0,6.13827425]
[1625649816286,0.46315088,34724.0,34723.0,6.13827425]
[1625649817848,0.46315088,34724.0,34723.0,6.37884969]
[1625649818453,0.46315088,34724.0,34723.0,8.06741894]
[1625649818812,0.46315088,34724.0,34723.0,6.37884969]
[1625649825902,0.46315088,34724.0,34723.0,6.37404628]
[1625649826023,0.46315088,34724.0,34723.0,6.37884867]
[1625649828968,5.61605088,34724.0,34723.0,6.37884867]
[1625649829989,5.61605088,34724.0,34723.0,6.88530379]
[1625649836425,5.61605088,34724.0,34723.0,11.69310379]
[1625649840026,0.46315088,34724.0,34723.0,11.69310379]
[1625649843809,0.46315088,34724.0,34723.0,6.88530379]
[1625649847661,0.46315088,34724.0,34723.0,6.40415291]
[1625649848382,0.98539113,34724.0,34723.0,4.88317551]
[1625649848567,2.68123106,34724.0,34723.0,4.88317551]
[1625649851750,3.86890911,34724.0,34723.0,4.88317551]
[1625649852233,2.68123106,34724.0,34723.0,4.88317551]
[1625649852654,3.86881931,34724.0,34723.0,4.88317551]
[1625649852893,3.85538906,34724.0,34723.0,4.88317551]
[1625649854519,2.66780081,34724.0,34723.0,4.88317551]
[1625649854881,3.8556028,34724.0,34723.0,4.88317551]
[1625649864976,3.8556028,34724.0,34723.0,3.52984985]
[1625649868106,3.86902735,34724.0,34723.0,3.52504746]
[1625649868227,5.22017382,34724.0,34723.0,1.32458344]
[1625649868347,5.22017382,34724.0,34720.0,0.6020196]
[1625649868527,0.24057544,34721.0,34720.0,0.6020196]
[1625649868648,1.76040206,34721.0,34720.0,0.6020196]
[1625649868767,1.99537206,34721.0,34720.0,0.6020196]
[1625649868887,3.358891,34721.0,34716.0,0.002]
[1625649869127,1.3500511,34719.0,34716.0,0.002]
[1625649869548,1.3500511,34719.0,34717.0,0.00480804]
[1625649869668,4.6251,34718.0,34717.0,0.00480804]
[1625649870630,5.10625088,34718.0,34717.0,0.00480804]
[1625649870750,5.11967699,34718.0,34716.0,0.002]
[1625649870876,6.4687372,34718.0,34716.0,0.002]
[1625649871114,2.87605574,34717.0,34713.0,0.33904906]
[1625649871353,2.87605574,34717.0,34711.0,0.003]
[1625649871354,1.51430681,34714.0,34711.0,0.003]
[1625649871474,1.84468681,34714.0,34711.0,0.003]
[1625649871606,1.51395068,34712.0,34711.0,0.003]
[1625649872075,1.52737939,34712.0,34711.0,0.003]
[1625649872197,0.01342871,34712.0,34711.0,0.003]
[1625649872556,0.49457959,34712.0,34711.0,0.003]
[1625649872916,0.48115088,34712.0,34711.0,0.003]
[1625649876408,0.48115088,34712.0,34709.0,0.001]
[1625649876586,0.24057544,34710.0,34709.0,0.001]
[1625649879350,0.5755941,34710.0,34709.0,0.001]
[1625649879650,0.24057544,34710.0,34709.0,0.33873677]
[1625649880012,0.24057544,34710.0,34709.0,0.001]
[1625649886141,0.24057544,34710.0,34709.0,1.35170791]
[1625649886684,0.50434544,34710.0,34709.0,0.001]
[1625649887404,1.00698436,34710.0,34709.0,0.001]
[1625649888305,0.83938224,34710.0,34709.0,0.001]
[1625649888483,0.83938224,34710.0,34707.0,0.50759808]
[1625649888604,1.00694985,34710.0,34707.0,0.50759808]
[1625649888723,1.24752529,34710.0,34707.0,0.50759808]
[1625649888847,1.24752529,34710.0,34708.0,0.1688415]
[1625649889504,1.24752529,34710.0,34707.0,0.50759444]
[1625649889805,1.24752529,34710.0,34708.0,0.1688418]
[1625649889985,1.24752529,34710.0,34707.0,0.50756767]
[1625649893296,0.74492088,34710.0,34708.0,0.50640359]
[1625649893415,0.48115088,34710.0,34708.0,0.50640359]
[1625649893775,0.48115088,34710.0,34709.0,0.16879945]
[1625649895158,0.48115088,34710.0,34709.0,0.50640471]
[1625649895819,0.48115088,34710.0,34709.0,0.16879945]
[1625649895940,0.48115088,34710.0,34709.0,0.45041945]
[1625649896059,0.48115088,34710.0,34709.0,0.28162]
[1625649896601,0.48115088,34710.0,34709.0,0.28645902]
[1625649898223,0.48115088,34710.0,34709.0,0.00483902]
[1625649898463,0.48115088,34710.0,34709.0,1.01797621]
[1625649899424,0.48115088,34710.0,34709.0,0.00483902]
[1625649899664,0.48115088,34710.0,34709.0,1.01819182]
[1625649900144,0.48115088,34710.0,34709.0,0.00483902]
[1625649900387,0.64927574,34710.0,34709.0,0.51159506]
[1625649900506,0.64927574,34710.0,34709.0,0.50675604]
[1625649900626,0.64927574,34710.0,34708.0,0.24057544]
[1625649900627,0.48115088,34710.0,34708.0,0.24057544]
[1625649900747,0.48115088,34710.0,34709.0,0.00483713]
[1625649900867,0.48115088,34710.0,34709.0,1.01828734]
[1625649905131,0.48115088,34710.0,34709.0,0.00483713]
[1625649905372,0.48115088,34710.0,34709.0,1.01881563]
[1625649906696,0.48115088,34710.0,34709.0,2.20212729]
[1625649907895,0.48115088,34710.0,34709.0,3.55470614]
[1625649908855,0.24057544,34710.0,34709.0,3.79528158]
[1625649917817,0.23767544,34710.0,34709.0,3.79528158]
[1625649918596,0.23767544,34710.0,34709.0,5.31870543]
[1625649920519,0.23767544,34710.0,34709.0,3.79528158]
[1625649920880,0.23767544,34710.0,34709.0,5.31911294]
[1625649921120,0.23767544,34710.0,34709.0,3.79528158]
[1625649926046,0.23767544,34710.0,34709.0,5.3204821]
[1625649926286,0.23767544,34710.0,34709.0,3.79528158]
[1625649926648,0.3222129,34710.0,34709.0,3.79528158]
[1625649926890,0.49115768,34710.0,34709.0,3.79528158]
[1625649927849,0.49115768,34710.0,34709.0,5.3209175]
[1625649927850,0.23767544,34710.0,34709.0,5.3209175]
[1625649928511,0.23767544,34710.0,34709.0,5.99916925]
[1625649931214,0.3221475,34710.0,34709.0,5.99916925]
[1625649931334,0.23767544,34710.0,34709.0,5.99916925]
[1625649931994,0.49091027,34710.0,34709.0,5.99916925]
[1625649932234,0.82833091,34710.0,34709.0,5.99916925]
[1625649932596,0.49091027,34710.0,34709.0,5.99916925]
[1625649932776,0.32214325,34710.0,34709.0,5.99916925]
[1625649933499,0.23767544,34710.0,34709.0,5.99916925]
[1625649938128,0.32226346,34710.0,34709.0,5.99916925]
[1625649945053,0.32226346,34710.0,34709.0,5.75859381]
[1625649945167,0.66774346,34710.0,34709.0,5.75859381]
[1625649945287,0.58315544,34710.0,34709.0,5.75859381]
[1625649945410,0.82373088,34710.0,34709.0,5.75859381]
[1625649945536,1.51232235,34710.0,34709.0,5.75859381]
[1625649946431,2.52510713,34710.0,34709.0,4.23295789]
[1625649949317,3.70628676,34710.0,34709.0,4.23295789]
[1625649949796,2.52510713,34710.0,34709.0,4.23295789]
[1625649950036,3.70647799,34710.0,34709.0,4.23295789]
[1625649950698,5.055739,34710.0,34709.0,4.23295789]
[1625649950939,5.055739,34710.0,34709.0,2.88037904]
[1625649951420,5.29631444,34710.0,34709.0,2.88037904]
[1625649952140,5.29631444,34710.0,34709.0,4.54429654]
[1625649952439,3.94705343,34710.0,34709.0,4.54429654]
[1625649953401,3.93367892,34710.0,34709.0,4.54429654]
[1625649954127,3.58819892,34710.0,34709.0,4.54429654]
[1625649954251,0.67521696,34710.0,34709.0,6.07281475]
[1625649954486,0.50706306,34710.0,34709.0,6.07281475]
[1625649954846,0.08464169,34710.0,34709.0,6.07281475]
[1625649955088,0.58021976,34711.0,34709.0,6.07281475]
[1625649955328,0.58021976,34711.0,34710.0,5.77386099]
[1625649955448,0.58021976,34711.0,34710.0,6.25501187]
[1625649955568,0.24215983,34711.0,34710.0,6.2598346]
[1625649955992,0.58006818,34711.0,34710.0,6.2598346]
[1625649956289,0.24215983,34711.0,34710.0,6.2598346]
[1625649956530,0.58005096,34711.0,34710.0,6.2598346]
[1625649956709,0.24215983,34711.0,34710.0,6.2598346]
[1625649957790,0.58004116,34711.0,34710.0,6.2598346]
[1625649957910,0.07304539,34711.0,34710.0,6.2598346]
[1625649958392,0.50697491,34712.0,34710.0,6.2598346]
[1625649958691,0.50697491,34712.0,34711.0,6.28345951]
[1625649958870,0.50697491,34712.0,34711.0,6.28827847]
[1625649960917,0.84486517,34712.0,34711.0,6.28827847]
[1625649961397,0.50693819,34712.0,34711.0,6.28827847]
[1625649961519,0.74751363,34712.0,34711.0,6.28827847]
[1625649962358,1.42335855,34712.0,34711.0,6.28827847]
[1625649963801,0.74751363,34712.0,34711.0,6.28827847]
[1625649964040,1.08557442,34712.0,34711.0,6.28827847]
[1625649964220,0.57863623,34712.0,34711.0,6.28827847]
[1625649964522,1.08575167,34712.0,34711.0,6.28827847]
[1625649965001,0.74781984,34712.0,34711.0,6.28827847]
[1625649965121,0.40975905,34712.0,34711.0,6.28827847]
[1625649965420,0.40975905,34712.0,34711.0,6.37467847]
[1625649966443,0.40975905,34712.0,34711.0,6.28827847]
[1625649966743,2.43681041,34712.0,34711.0,6.28827847]
[1625649966983,4.9681712,34712.0,34711.0,4.7598694]
[1625649967224,4.9681712,34712.0,34711.0,3.40128356]
[1625649967362,4.98158279,34712.0,34711.0,3.3964646]
[1625649967466,4.98158279,34712.0,34711.0,2.20770199]
[1625649967585,5.22215823,34712.0,34711.0,2.20770199]
[1625649967705,6.73971998,34712.0,34711.0,2.20770199]
[1625649968185,5.22215823,34712.0,34711.0,2.20770199]
[1625649968366,6.73963453,34712.0,34711.0,2.20770199]
[1625649970231,6.73963453,34712.0,34711.0,1.18876261]
[1625649972572,6.73963453,34712.0,34711.0,0.50946969]
[1625649972813,6.73963453,34712.0,34711.0,0.84906093]
[1625649973113,6.73963453,34712.0,34711.0,0.50934687]
[1625649978580,5.22215823,34712.0,34711.0,0.50934687]
[1625649979183,5.22215823,34712.0,34711.0,0.84857348]
[1625649979361,5.22215823,34712.0,34711.0,0.33959124]
[1625649979604,5.22215823,34712.0,34711.0,0.50924965]
[1625649979902,5.22215823,34712.0,34711.0,0.16965841]
[1625649981948,6.7343691,34712.0,34710.0,0.16962778]
[1625649982245,4.70664719,34711.0,34710.0,0.16962778]
[1625649982368,4.72006026,34711.0,34710.0,0.16962778]
[1625649982966,4.72006026,34711.0,34709.0,0.50985975]
[1625649983210,4.70669845,34710.0,34709.0,0.50985975]
[1625649983631,4.94727389,34710.0,34709.0,0.50985975]
[1625649983993,4.94727389,34710.0,34709.0,1.18813063]
[1625649985373,4.94727389,34710.0,34709.0,0.50977027]
[1625649985495,5.15751389,34710.0,34709.0,0.50977027]
[1625649985672,5.15751389,34710.0,34709.0,0.84892366]
[1625649985852,5.15751389,34710.0,34709.0,0.34015339]
[1625649986332,5.1709267,34710.0,34709.0,0.50973235]